bitfinex/quotes_BTCUSD_20250308
["timestamp","ask_amount","ask_price","bid_price","bid_amount"]
[1741443713699,0.011546,86606.0,86602.0,0.0777]
[1741443714308,0.011546,86606.0,86603.0,0.01828485]
[1741443714697,0.011546,86606.0,86605.0,0.0777]
[1741443715237,0.011546,86606.0,86605.0,0.09598485]
[1741443716714,0.011546,86606.0,86605.0,0.21478485]
[1741443716926,0.011546,86606.0,86605.0,0.14408485]
[1741443717127,0.011546,86606.0,86605.0,0.1258]
[1741443717379,0.011546,86606.0,86605.0,0.14407588]
[1741443718026,0.011546,86606.0,86605.0,0.14226494]
[1741443718902,0.311546,86606.0,86605.0,0.02527588]
[1741443719108,0.311546,86606.0,86605.0,0.007]
[1741443720691,0.59463612,86606.0,86605.0,0.007]
[1741443720836,0.011546,86604.0,86603.0,6.224e-05]
[1741443721037,0.311546,86604.0,86603.0,6.224e-05]
[1741443721712,0.542496,86599.0,86598.0,0.1186]
[1741443723637,0.542496,86599.0,86590.0,0.23078]
[1741443723638,0.542518,86591.0,86590.0,0.14828]
[1741443723844,0.542518,86591.0,86590.0,0.2666]
[1741443724058,0.542518,86591.0,86590.0,0.28488444]
[1741443724814,0.542518,86591.0,86590.0,0.16656444]
[1741443725243,0.542518,86591.0,86590.0,0.16659095]
[1741443725821,0.542518,86591.0,86590.0,0.17359095]
[1741443726224,0.542518,86591.0,86590.0,0.15528]
[1741443726438,0.542518,86591.0,86590.0,0.17359095]
[1741443727287,0.542518,86591.0,86590.0,0.16659095]
[1741443727508,0.542518,86591.0,86590.0,0.17359095]
[1741443727921,0.542518,86591.0,86590.0,0.16659095]
[1741443728115,0.542518,86591.0,86590.0,0.16496111]
[1741443728357,0.542518,86591.0,86590.0,0.17196111]
[1741443730149,0.82560812,86591.0,86590.0,0.17196111]
[1741443730356,1.02560812,86591.0,86590.0,0.17196111]
[1741443730558,1.02560812,86591.0,86590.0,0.15365016]
[1741443730992,1.02560812,86591.0,86590.0,0.007]
[1741443731753,0.82560812,86591.0,86590.0,0.007]
[1741443732139,0.82560812,86591.0,86585.0,0.1184998]
[1741443732499,0.542533,86586.0,86585.0,0.11854424]
[1741443732704,0.82562312,86586.0,86585.0,0.11854424]
[1741443734062,0.52562312,86586.0,86585.0,0.19654424]
[1741443734268,0.28309012,86586.0,86585.0,0.19654424]
[1741443734492,0.28309012,86586.0,86585.0,0.25799324]
[1741443734701,0.011548,86595.0,86594.0,0.0499]
[1741443735061,0.242509,86595.0,86594.0,0.0489]
[1741443735278,0.242509,86595.0,86594.0,0.06728926]
[1741443735509,0.242509,86595.0,86594.0,0.0489]
[1741443735726,0.011547,86598.0,86595.0,0.0759]
[1741443735920,0.011547,86598.0,86596.0,0.1214]
[1741443736051,0.242501,86597.0,86596.0,0.13978926]
[1741443737097,0.011547,86597.0,86596.0,0.21568926]
[1741443737300,0.09901783,86599.0,86597.0,0.0759]
[1741443737907,0.011547,86598.0,86597.0,0.0759]
[1741443738101,0.011547,86598.0,86597.0,0.07443314]
[1741443739042,0.011547,86598.0,86597.0,0.08143314]
[1741443739233,0.011547,86599.0,86597.0,0.07443314]
[1741443739468,0.0001699,86606.0,86599.0,0.230949]
[1741443739683,0.0117159,86606.0,86600.0,0.060947]
[1741443740612,0.2426479,86606.0,86600.0,0.060947]
[1741443741110,0.0001699,86606.0,86602.0,0.011547]
[1741443741274,0.0001699,86606.0,86605.0,0.136846]
[1741443741486,0.0001699,86606.0,86605.0,0.13800045]
[1741443742860,0.0001699,86606.0,86605.0,0.15632008]
[1741443743263,0.230899,86618.0,86605.0,0.15632008]
[1741443743264,0.230915,86612.0,86605.0,0.15632008]
[1741443743600,0.011546,86610.0,86605.0,0.15632008]
[1741443743947,0.011546,86610.0,86605.0,0.14477408]
[1741443744285,0.011546,86607.0,86606.0,0.12052]
[1741443744515,0.242476,86606.0,86605.0,0.14361963]
[1741443744695,0.242476,86606.0,86605.0,0.24582]
[1741443744890,0.242476,86606.0,86605.0,0.25282]
[1741443745095,0.242476,86606.0,86605.0,0.26413963]
[1741443745639,0.242476,86606.0,86605.0,0.27113963]
[1741443745754,0.242476,86606.0,86605.0,0.21473963]
[1741443745968,0.242476,86606.0,86605.0,0.22173963]
[1741443746169,0.242476,86606.0,86605.0,0.14583963]
[1741443748132,0.2426459,86606.0,86605.0,0.13263785]
[1741443748548,0.2426459,86606.0,86605.0,0.11431822]
[1741443748956,0.2426459,86606.0,86605.0,0.12131822]
[1741443749314,0.2426459,86606.0,86605.0,0.11431822]
[1741443750549,0.0001699,86606.0,86605.0,0.35225122]
[1741443750753,0.0001699,86606.0,86605.0,0.19731822]
[1741443750952,0.0001699,86606.0,86605.0,0.21556938]
[1741443751176,0.0001699,86606.0,86605.0,0.44650238]
[1741443751422,0.0001699,86606.0,86605.0,0.21556938]
[1741443752718,0.0001699,86606.0,86605.0,0.44650238]
[1741443752938,0.0001699,86606.0,86605.0,0.45804838]
[1741443753617,0.0001699,86606.0,86605.0,0.50324838]
[1741443756190,0.0001699,86624.0,86623.0,0.242429]
[1741443756390,0.0001699,86624.0,86623.0,0.635669]
[1741443756594,0.0001699,86624.0,86623.0,0.65387796]
[1741443757428,0.00023666,86624.0,86623.0,0.65387796]
[1741443758103,0.00023666,86624.0,86623.0,0.66087796]
[1741443758319,0.00023666,86624.0,86623.0,0.66787796]
[1741443758520,0.00023666,86624.0,86623.0,0.68241881]
[1741443758971,0.00023666,86624.0,86623.0,0.67541881]
[1741443759529,0.00023666,86624.0,86623.0,0.68241881]
[1741443760969,0.00023666,86624.0,86623.0,0.67541881]
[1741443761318,0.00023666,86624.0,86623.0,0.68241881]
[1741443761520,0.00023666,86624.0,86623.0,0.67541881]
[1741443761719,0.00023666,86624.0,86623.0,0.66841881]
[1741443761952,0.00023666,86624.0,86623.0,0.67541881]
[1741443762169,0.00023666,86624.0,86623.0,0.66841881]
[1741443762578,0.00023666,86624.0,86623.0,0.68241881]
[1741443762807,0.00023666,86624.0,86623.0,0.67541881]
[1741443762992,0.00023666,86624.0,86623.0,0.66841881]
[1741443764204,0.00023666,86624.0,86623.0,0.67541881]
[1741443764800,0.00023666,86624.0,86623.0,0.68241881]
[1741443765325,0.00023666,86624.0,86623.0,0.54827796]
[1741443765505,0.00023666,86624.0,86623.0,0.66763796]
[1741443767219,0.00023666,86624.0,86623.0,0.43675296]
[1741443768415,0.00023666,86624.0,86623.0,0.41808896]
[1741443768652,0.00023666,86624.0,86623.0,0.41108896]
[1741443768857,0.00023666,86624.0,86623.0,0.41808896]
[1741443769190,0.00023666,86624.0,86623.0,0.42508896]
[1741443769810,0.00023666,86624.0,86623.0,0.41808896]
[1741443770623,0.00023666,86624.0,86623.0,0.41108896]
[1741443771049,0.00023666,86624.0,86623.0,0.41808896]
[1741443771356,0.00023666,86624.0,86623.0,0.42263296]
[1741443771468,0.00023666,86624.0,86623.0,0.42963296]
[1741443771874,0.00023666,86624.0,86623.0,0.43663296]
[1741443774523,0.00023666,86624.0,86623.0,0.42508896]
[1741443775354,0.00023666,86624.0,86623.0,0.41808896]
[1741443776207,0.00023666,86624.0,86623.0,0.42963296]
[1741443776578,0.00023666,86624.0,86623.0,0.43663296]
[1741443781503,0.00023666,86624.0,86623.0,0.42508896]
[1741443782336,0.00023666,86624.0,86623.0,0.43663296]
[1741443783262,0.00023666,86624.0,86623.0,0.42508896]
[1741443783508,0.00023666,86624.0,86623.0,0.37978896]
[1741443785129,0.00023666,86624.0,86623.0,0.37278896]
[1741443785332,0.01178066,86624.0,86623.0,0.16644896]
[1741443785623,0.01178066,86624.0,86623.0,0.29216896]
[1741443786729,0.00023666,86624.0,86623.0,0.29216896]
[1741443787109,0.00023666,86624.0,86623.0,0.29916896]
[1741443787931,0.00023666,86624.0,86623.0,0.29936896]
[1741443788172,0.00023666,86624.0,86623.0,0.29236896]
[1741443789309,0.00023666,86624.0,86623.0,0.29936896]
[1741443790143,0.00023666,86624.0,86623.0,0.29236896]
[1741443790575,0.00023666,86624.0,86623.0,0.29936896]
[1741443790731,0.00023666,86624.0,86623.0,0.29236896]
[1741443791162,0.00023666,86624.0,86623.0,0.53025396]
[1741443791366,0.00023666,86624.0,86623.0,0.62039796]
[1741443791828,0.00023666,86624.0,86623.0,0.61339796]
[1741443792031,0.00023666,86624.0,86623.0,0.62039796]
[1741443792385,0.00023666,86624.0,86623.0,0.63493881]
[1741443792591,0.00023666,86624.0,86623.0,0.68033881]
[1741443793003,0.00023666,86624.0,86623.0,0.67333881]
[1741443795231,0.00023666,86624.0,86623.0,0.69833881]
[1741443795439,0.00023666,86624.0,86623.0,0.70533881]
[1741443796209,0.00023666,86624.0,86623.0,0.69833881]
[1741443796616,0.00023666,86624.0,86623.0,0.70533881]
[1741443796990,0.00023666,86624.0,86623.0,0.69833881]
[1741443797527,0.00023666,86624.0,86623.0,0.67333881]
[1741443797957,0.00023666,86624.0,86623.0,0.69833881]
[1741443799857,0.00023666,86624.0,86623.0,0.69133881]
[1741443800057,0.00023666,86624.0,86623.0,0.68950693]
[1741443800235,0.00023666,86624.0,86623.0,0.69650693]
[1741443800618,0.00023666,86624.0,86623.0,0.72150693]
[1741443801216,0.00023666,86624.0,86623.0,0.72850693]
[1741443803129,0.30495,86673.0,86649.0,0.01154]
[1741443803337,0.00038565,86654.0,86650.0,0.497693]
[1741443803538,0.00038565,86654.0,86650.0,0.28183133]
[1741443804402,0.00038565,86654.0,86650.0,0.51264433]
[1741443804601,0.00038565,86654.0,86650.0,0.28183133]
[1741443804920,0.24272865,86654.0,86650.0,0.28183133]
[1741443805118,0.01154,86651.0,86650.0,0.16315133]
[1741443805321,0.01154,86651.0,86650.0,0.28163133]
[1741443806295,0.00038565,86654.0,86653.0,0.242345]
[1741443806524,0.00038565,86654.0,86653.0,0.25724773]
[1741443807187,0.00055555,86654.0,86653.0,0.25724773]
[1741443808280,0.00055555,86654.0,86653.0,0.01490273]
[1741443808485,0.00055555,86654.0,86653.0,0.24570773]
[1741443808690,0.00055555,86654.0,86653.0,0.25724773]
[1741443809748,0.00055555,86654.0,86653.0,0.26424773]
[1741443810378,0.00055555,86654.0,86653.0,0.39134773]
[1741443810550,0.00055555,86654.0,86653.0,0.39834773]
[1741443812422,0.00055555,86654.0,86653.0,0.41288858]
[1741443812596,0.00055555,86654.0,86653.0,0.40588858]
[1741443812834,0.00055555,86654.0,86653.0,0.43088858]
[1741443813039,0.00055555,86654.0,86653.0,0.43788858]
[1741443813443,0.00055555,86654.0,86653.0,0.43088858]
[1741443814865,0.00055555,86654.0,86653.0,0.43788858]
[1741443816613,0.00055555,86654.0,86653.0,0.43088858]
[1741443816952,0.00055555,86654.0,86653.0,0.43788858]
[1741443817181,0.00055555,86654.0,86653.0,0.41288858]
[1741443817357,0.00055555,86654.0,86653.0,0.53068858]
[1741443817564,0.00055555,86654.0,86653.0,0.41288858]
[1741443817793,0.00055555,86654.0,86653.0,0.53064858]
[1741443818202,0.00055555,86654.0,86653.0,0.55425779]
[1741443818433,0.00055555,86654.0,86653.0,0.55459739]
[1741443819511,0.00055555,86654.0,86653.0,0.57959739]
[1741443820089,0.00055555,86654.0,86653.0,0.55459739]
[1741443820460,0.00055555,86654.0,86653.0,0.54005654]
[1741443820662,0.00055555,86654.0,86653.0,0.54009654]
[1741443821111,0.01865673,86654.0,86653.0,0.54009654]
[1741443821285,0.01865673,86654.0,86653.0,0.55463739]
[1741443821897,0.01865673,86654.0,86653.0,1.11019739]
[1741443823052,0.03365264,86682.0,86654.0,0.01454085]
[1741443823212,0.011537,86671.0,86664.0,0.242311]
[1741443823394,0.011537,86671.0,86665.0,0.11911374]
[1741443823609,0.011537,86671.0,86665.0,0.13065174]
[1741443823808,0.011537,86671.0,86666.0,0.01471104]
[1741443824038,9.788e-05,86673.0,86667.0,0.011538]
[1741443824240,9.788e-05,86673.0,86669.0,0.011538]
[1741443824439,9.788e-05,86673.0,86670.0,0.01471104]
[1741443824663,9.788e-05,86673.0,86672.0,0.242292]
[1741443824866,9.788e-05,86673.0,86672.0,0.25700759]
[1741443826863,0.01819654,86673.0,86672.0,0.25700759]
[1741443827276,0.01819654,86673.0,86672.0,0.26400759]
[1741443827887,0.01819654,86673.0,86672.0,0.02171559]
[1741443828315,0.01819654,86673.0,86672.0,0.03325259]
[1741443829358,0.01819654,86673.0,86672.0,0.04025259]
[1741443831864,0.01819654,86673.0,86672.0,0.04059199]
[1741443832481,0.01819654,86673.0,86672.0,0.02905499]
[1741443833084,0.01819654,86673.0,86672.0,0.25980999]
[1741443833684,0.01819654,86673.0,86672.0,0.27134699]
[1741443836360,0.01819654,86673.0,86672.0,0.41946699]
[1741443839074,0.01819654,86673.0,86672.0,0.43400784]
[1741443842349,0.011536,86682.0,86673.0,0.02607785]
[1741443842559,0.011536,86680.0,86675.0,0.011537]
[1741443842830,0.011536,86680.0,86676.0,0.11835359]
[1741443843046,0.011536,86681.0,86676.0,0.11835359]
[1741443843269,0.0001697,86680.0,86677.0,0.01470123]
[1741443843662,0.0001697,86680.0,86678.0,0.00115357]
[1741443844007,0.0001697,86680.0,86679.0,0.01469667]
[1741443844415,0.0117057,86680.0,86679.0,0.01469667]
[1741443844821,0.011536,86679.0,86676.0,0.1172]
[1741443845246,0.011536,86679.0,86677.0,0.01469667]
[1741443846716,0.242272,86679.0,86677.0,0.01469667]
[1741443847005,0.011536,86678.0,86677.0,0.02169667]
[1741443847367,0.011536,86678.0,86677.0,0.01469667]
[1741443847568,0.011536,86678.0,86677.0,0.02169667]
[1741443847809,0.011536,86678.0,86677.0,0.01469667]
[1741443848182,0.011536,86678.0,86677.0,0.02169667]
[1741443848587,0.011536,86678.0,86677.0,0.02869667]
[1741443849351,0.011536,86678.0,86677.0,0.02169667]
[1741443849680,0.011536,86678.0,86677.0,0.13889667]
[1741443849885,0.02963468,86678.0,86677.0,0.14589667]
[1741443851960,0.0117057,86680.0,86677.0,0.14589667]
[1741443852527,0.01809865,86678.0,86677.0,0.14589667]
[1741443852740,0.230736,86679.0,86677.0,0.14589667]
[1741443852918,0.011536,86678.0,86677.0,0.14589667]
[1741443853230,0.011536,86678.0,86677.0,0.13889667]
[1741443853779,0.011536,86678.0,86677.0,0.14589667]
[1741443854191,0.011536,86678.0,86677.0,0.13189667]
[1741443854549,0.011536,86678.0,86677.0,0.14589667]
[1741443856427,0.0001697,86680.0,86677.0,0.14589667]
[1741443856665,0.0001697,86680.0,86678.0,0.0778]
[1741443857056,0.0001697,86680.0,86679.0,0.01469458]
[1741443857271,0.0001697,86680.0,86679.0,0.02623058]
[1741443857734,0.0001697,86680.0,86679.0,0.01469458]
[1741443858711,0.0117057,86680.0,86679.0,0.02169458]
[1741443859486,0.02980412,86680.0,86679.0,0.02169458]
[1741443860605,0.242263,86683.0,86679.0,0.02869458]
[1741443860807,0.011536,86680.0,86679.0,0.02869458]
[1741443861173,0.01809854,86680.0,86679.0,0.02869458]
[1741443861749,0.01809854,86680.0,86679.0,0.02169458]
[1741443862318,0.01809854,86680.0,86679.0,0.02869458]
[1741443862558,0.02963454,86680.0,86679.0,0.02869458]
[1741443864010,0.011536,86680.0,86679.0,0.02869458]
[1741443864521,0.011536,86680.0,86679.0,0.02169458]
[1741443864880,0.011536,86680.0,86679.0,0.02869458]
[1741443865115,0.011536,86680.0,86679.0,0.17681458]
[1741443865839,0.011536,86682.0,86679.0,0.17681458]
[1741443866771,0.011536,86681.0,86679.0,0.17681458]
[1741443867005,0.011536,86680.0,86679.0,0.17681458]
[1741443867893,0.0117057,86680.0,86679.0,0.17681458]
[1741443868982,0.0117057,86680.0,86679.0,0.16981458]
[1741443870726,0.0117057,86680.0,86679.0,0.16281458]
[1741443871011,0.0117057,86680.0,86679.0,0.16981458]
[1741443871227,0.0117057,86680.0,86679.0,0.16281458]
[1741443871709,0.0117057,86680.0,86679.0,0.17681458]
[1741443872463,0.0001697,86680.0,86679.0,0.17681458]
[1741443872961,0.0001697,86680.0,86679.0,0.29397458]
[1741443874518,0.0001697,86680.0,86679.0,0.28697458]
[1741443875446,0.0001697,86680.0,86679.0,0.29397458]
[1741443878086,0.0001697,86680.0,86679.0,0.37367458]
[1741443880588,0.0117057,86680.0,86679.0,0.37367458]
[1741443880768,0.0117057,86680.0,86679.0,0.37401438]
[1741443880972,0.0117057,86680.0,86679.0,0.17715438]
[1741443881176,0.0117057,86680.0,86679.0,0.29431438]
[1741443885692,0.0117057,86680.0,86679.0,0.29151438]
[1741443889174,0.0117057,86680.0,86679.0,0.17435438]
[1741443889354,0.0117057,86680.0,86679.0,0.29151438]
[1741443890608,0.0001697,86680.0,86679.0,0.29151438]
[1741443891525,0.0117057,86680.0,86679.0,0.29151438]
[1741443895816,0.0117057,86680.0,86679.0,0.17435438]
[1741443896027,0.0117057,86680.0,86679.0,0.29151438]
[1741443899267,0.0117057,86680.0,86679.0,0.36891438]
[1741443900301,0.0117057,86680.0,86679.0,0.29151438]
[1741443900509,0.0117057,86680.0,86679.0,0.17435438]
[1741443900712,0.0117057,86680.0,86679.0,0.29151438]
[1741443902230,0.0117057,86680.0,86679.0,0.36891438]
[1741443903837,0.0001697,86680.0,86679.0,0.36891438]
[1741443904256,0.01826824,86680.0,86679.0,0.41511438]
[1741443905258,0.0001697,86680.0,86679.0,0.41511438]
[1741443905673,0.0001697,86680.0,86679.0,0.42665038]
[1741443908946,0.01826766,86680.0,86679.0,0.42665038]
[1741443910087,0.01826766,86680.0,86679.0,0.41511438]
[1741443912080,0.01826766,86680.0,86679.0,0.42965523]
[1741443912289,0.01826766,86680.0,86679.0,0.44119123]
[1741443912892,0.0001697,86680.0,86679.0,0.44119123]
[1741443913312,0.0001697,86680.0,86679.0,0.43419123]
[1741443913768,0.0001697,86680.0,86679.0,0.44119123]
[1741443914336,0.0001697,86680.0,86679.0,0.43419123]
[1741443914773,0.0001697,86680.0,86679.0,0.44119123]
[1741443915418,0.0001697,86680.0,86679.0,0.43419123]
[1741443916064,0.0001697,86680.0,86679.0,0.44119123]
[1741443916676,0.0001697,86680.0,86679.0,0.43419123]
[1741443916888,0.0001697,86680.0,86679.0,0.44119123]
[1741443917301,0.0001697,86680.0,86679.0,0.43419123]
[1741443918819,0.01826323,86680.0,86679.0,0.44119123]
[1741443919238,0.01826323,86680.0,86679.0,0.42719123]
[1741443920021,0.01826323,86680.0,86679.0,0.44119123]
[1741443921114,0.01826323,86680.0,86679.0,0.32403123]
[1741443921319,0.01826323,86680.0,86679.0,0.44115123]
[1741443923172,0.01826323,86680.0,86679.0,0.43415123]
[1741443923773,0.01826323,86680.0,86679.0,0.44115123]
[1741443925429,0.01826323,86680.0,86679.0,0.67188723]
[1741443931923,0.24434027,86710.0,86680.0,0.01454085]
[1741443932125,0.230659,86708.0,86697.0,0.09484085]
[1741443932322,0.011533,86704.0,86698.0,0.34895727]
[1741443932529,0.24434027,86710.0,86703.0,0.242205]
[1741443932530,0.011532,86709.0,86703.0,0.242205]
[1741443932862,0.011532,86708.0,86704.0,0.14808]
[1741443933079,0.011533,86707.0,86704.0,0.16216686]
[1741443933295,0.011533,86706.0,86704.0,0.16216686]
[1741443933724,0.0001698,86711.0,86708.0,0.230658]
[1741443933922,0.0001698,86711.0,86710.0,0.242185]
[1741443934119,0.0001698,86711.0,86710.0,0.322485]
[1741443934333,0.0001698,86711.0,86710.0,0.33652598]
[1741443936369,0.0001698,86711.0,86710.0,0.35806683]
[1741443936770,0.0001698,86711.0,86710.0,0.40556683]
[1741443937599,0.0001698,86711.0,86710.0,0.40602796]
[1741443939091,0.0001698,86711.0,86710.0,0.39902796]
[1741443939297,0.0001698,86711.0,86710.0,0.40556683]
[1741443939512,0.01825859,86711.0,86710.0,0.96088683]
[1741443939682,0.01825859,86711.0,86710.0,0.95388683]
[1741443939878,0.01825859,86711.0,86710.0,0.96088683]
[1741443941096,0.01825859,86711.0,86710.0,0.91338683]
[1741443942673,0.01825859,86711.0,86710.0,1.03046683]
[1741443943489,0.01825859,86711.0,86710.0,1.03746683]
[1741443944442,0.01825859,86711.0,86710.0,1.03046683]
[1741443945263,0.01825859,86711.0,86710.0,1.03746683]
[1741443946707,0.2423528,86711.0,86710.0,0.68235166]
[1741443946902,0.26035157,86711.0,86710.0,0.6940082]
[1741443947973,0.26035157,86711.0,86710.0,0.6870082]
[1741443948171,0.26035157,86711.0,86710.0,0.6940082]
[1741443948492,0.26035157,86711.0,86710.0,0.6870082]
[1741443948929,0.26035157,86711.0,86710.0,0.6800082]
[1741443949134,0.26035157,86711.0,86710.0,0.5629282]
[1741443949345,0.26035157,86711.0,86710.0,0.02565654]
[1741443949485,0.30785157,86711.0,86710.0,0.01865654]
[1741443949681,0.30785157,86711.0,86710.0,0.007]
[1741443949900,0.30785157,86711.0,86710.0,0.014]
[1741443950602,0.32594389,86711.0,86710.0,0.014]
[1741443952526,0.32594389,86711.0,86710.0,0.007]
[1741443952825,0.04779289,86711.0,86710.0,0.014]
[1741443953028,0.02970057,86711.0,86710.0,0.02563544]
[1741443953903,0.02970057,86711.0,86710.0,0.02597504]
[1741443956332,0.13370057,86711.0,86710.0,0.02597504]
[1741443956685,0.13370057,86711.0,86710.0,0.0143396]
[1741443959392,0.15179202,86711.0,86710.0,0.0143396]
[1741443960167,0.09489202,86711.0,86710.0,0.0143396]
[1741443960531,0.011533,86706.0,86705.0,0.1443276]
[1741443961029,0.242197,86706.0,86705.0,0.1443276]
[1741443961669,0.26028934,86706.0,86705.0,0.1443276]
[1741443962417,0.26028934,86706.0,86705.0,0.1513276]
[1741443962772,0.242197,86706.0,86705.0,0.1513276]
[1741443962997,0.011533,86707.0,86705.0,0.1513276]
[1741443963197,0.012533,86706.0,86705.0,0.1583276]
[1741443963570,0.001,86706.0,86705.0,0.1583276]
[1741443964204,0.24219,86709.0,86705.0,0.1513276]
[1741443964407,0.011532,86708.0,86705.0,0.1513276]
[1741443964855,0.001,86707.0,86705.0,0.1543276]
[1741443965050,0.011533,86706.0,86705.0,0.1543276]
[1741443965273,0.011533,86706.0,86705.0,0.1473276]
[1741443965567,0.001,86707.0,86705.0,0.1543276]
[1741443965773,0.001,86707.0,86706.0,0.011533]
[1741443966000,0.001,86707.0,86706.0,0.088333]
[1741443966206,0.002,86707.0,86706.0,0.088333]
[1741443966409,0.002,86707.0,86706.0,0.10402705]
[1741443967224,0.001,86707.0,86706.0,0.09249405]
[1741443967600,0.001,86707.0,86706.0,0.09134085]
[1741443967838,0.011532,86708.0,86706.0,0.09134085]
[1741443968031,0.011532,86708.0,86706.0,0.10304278]
[1741443968333,0.0001698,86711.0,86706.0,0.10304278]
[1741443968334,0.0001698,86711.0,86707.0,0.242194]
[1741443968683,0.0001698,86711.0,86710.0,0.02607285]
[1741443968919,0.0001698,86711.0,86710.0,0.10402596]
[1741443969128,0.01825956,86711.0,86710.0,0.11567545]
[1741443969365,0.01825956,86711.0,86710.0,0.16107545]
[1741443969638,0.01825956,86711.0,86710.0,0.16133942]
[1741443970449,0.01825956,86711.0,86710.0,0.16833942]
[1741443970602,0.01825956,86711.0,86710.0,0.16733942]
[1741443970804,0.01825956,86711.0,86710.0,0.16033942]
[1741443971010,0.0001698,86711.0,86710.0,0.16033942]
[1741443971226,0.0001698,86711.0,86710.0,0.16733942]
[1741443972827,0.0001698,86711.0,86710.0,0.16033942]
[1741443973183,0.0001698,86711.0,86710.0,0.16733942]
[1741443974480,0.0001698,86711.0,86710.0,0.28411545]
[1741443974697,0.0001698,86711.0,86710.0,0.28296234]
[1741443974874,0.0001698,86711.0,86710.0,0.29023353]
[1741443975077,0.230585,86736.0,86710.0,0.29023353]
[1741443975078,0.19337345,86736.0,86724.0,0.01153]
[1741443975320,0.230593,86733.0,86725.0,0.11815292]
[1741443975475,0.011529,86731.0,86725.0,0.11815292]
[1741443975681,0.01153,86729.0,86725.0,0.11815292]
[1741443975938,0.01153,86729.0,86725.0,0.117]
[1741443976140,0.01153,86728.0,86726.0,0.12858397]
[1741443976377,0.01153,86727.0,86726.0,0.12858397]
[1741443977739,0.01153,86727.0,86726.0,0.13558397]
[1741443978772,0.01153,86728.0,86726.0,0.13558397]
[1741443979242,0.01153,86727.0,86726.0,0.13558397]
[1741443979619,0.01153,86727.0,86726.0,0.12858397]
[1741443979819,0.24837395,86737.0,86726.0,0.12858397]
[1741443980021,0.011529,86732.0,86726.0,0.124]
[1741443980266,0.01153,86729.0,86727.0,0.01160235]
[1741443980470,0.01153,86729.0,86728.0,0.14804]
[1741443981314,0.01153,86729.0,86728.0,0.15964235]
[1741443981825,0.011529,86732.0,86728.0,0.15964235]
[1741443982533,0.01153,86729.0,86728.0,0.15964235]
[1741443983295,0.02961735,86729.0,86728.0,0.15964235]
[1741443983695,0.02961735,86729.0,86728.0,0.16664235]
[1741443984929,0.02961735,86729.0,86728.0,0.28364235]
[1741443986456,0.02961735,86729.0,86728.0,0.29064235]
[1741443986963,0.02961735,86729.0,86728.0,0.28364235]
[1741443987173,0.02961735,86729.0,86728.0,0.27664235]
[1741443987576,0.02961735,86729.0,86728.0,0.29064235]
[1741443987783,0.02961735,86729.0,86728.0,0.28364235]
[1741443988304,0.02961735,86729.0,86728.0,0.29064235]
[1741443988461,0.01153,86729.0,86728.0,0.29064235]
[1741443988641,0.02005868,86729.0,86728.0,0.29064235]
[1741443989780,0.02005868,86729.0,86728.0,0.28364235]
[1741443990517,0.02005868,86729.0,86728.0,0.29064235]
[1741443991875,0.03814695,86729.0,86728.0,0.27255408]
[1741443992316,0.03814695,86729.0,86728.0,0.15555408]
[1741443992678,0.03814695,86729.0,86728.0,0.14395173]
[1741443992898,0.02005868,86729.0,86728.0,0.15548752]
[1741443994431,0.3031488,86729.0,86728.0,0.15548752]
[1741443998261,0.5337518,86729.0,86728.0,0.15548752]
[1741443998465,0.29462012,86729.0,86728.0,0.15548752]
[1741443998606,0.52522312,86729.0,86728.0,0.15548752]
[1741444000613,0.242117,86735.0,86728.0,0.15548752]
[1741444000614,0.011529,86735.0,86729.0,0.1228]
[1741444000813,0.011529,86732.0,86729.0,0.1228]
[1741444001017,0.011529,86732.0,86730.0,0.01157669]
[1741444001460,0.011529,86731.0,86729.0,0.1228]
[1741444002630,0.01153,86730.0,86729.0,0.1228]
[1741444004169,0.01153,86730.0,86729.0,0.0847]
[1741444004365,0.01153,86730.0,86729.0,0.0917]
[1741444004943,0.011529,86731.0,86729.0,0.0917]
[1741444005869,0.011529,86731.0,86729.0,0.0847]
[1741444006043,0.011529,86734.0,86729.0,0.0847]
[1741444006257,0.00028547,86736.0,86730.0,0.01153]
[1741444006434,0.00028547,86736.0,86731.0,0.242126]
[1741444006630,0.00028547,86736.0,86730.0,0.01153]
[1741444006631,0.01181447,86736.0,86730.0,0.01153]
[1741444007052,0.06546002,86737.0,86730.0,0.01153]
[1741444007251,0.011529,86734.0,86729.0,0.322302]
[1741444007859,0.011529,86734.0,86729.0,0.326832]
[1741444008057,0.011529,86734.0,86729.0,0.10223]
[1741444008259,0.01153,86730.0,86729.0,0.0907]
[1741444008483,0.011529,86733.0,86729.0,0.0847]
[1741444008484,0.011529,86732.0,86729.0,0.0847]
[1741444009493,0.011529,86732.0,86729.0,0.0777]
[1741444009852,0.011529,86732.0,86730.0,0.007]
[1741444009996,0.011529,86733.0,86730.0,0.007]
[1741444010614,0.011529,86733.0,86729.0,0.0847]
[1741444011021,0.011529,86733.0,86729.0,0.0917]
[1741444011243,0.311528,86741.0,86735.0,0.242115]
[1741444011466,0.311528,86741.0,86737.0,0.1298]
[1741444011648,0.011928,86739.0,86737.0,0.1298]
[1741444011846,0.011528,86738.0,86737.0,0.1298]
[1741444012405,0.02765186,86738.0,86737.0,0.1298]
[1741444013276,0.242111,86737.0,86736.0,0.11696]
[1741444013650,0.011529,86737.0,86736.0,0.11696]
[1741444013862,0.011529,86737.0,86736.0,0.1284949]
[1741444014824,0.011529,86737.0,86736.0,0.1354949]
[1741444015229,0.242111,86737.0,86736.0,0.1354949]
[1741444020475,0.242111,86737.0,86736.0,0.1424949]
[1741444028791,0.242111,86737.0,86736.0,0.1428347]
[1741444029115,0.2422809,86737.0,86736.0,0.1428347]
[1741444031012,0.0001699,86737.0,86736.0,0.1428347]
[1741444032725,0.0116989,86737.0,86736.0,0.1428347]
[1741444039480,0.0116989,86737.0,86736.0,0.2908747]
[1741444039739,0.00864363,86737.0,86736.0,0.2908747]
[1741444041135,0.00881353,86737.0,86736.0,0.2908747]
[1741444041744,0.230581,86738.0,86736.0,0.2908747]
[1741444041928,0.011529,86737.0,86736.0,0.2908747]
[1741444042555,0.011529,86737.0,86736.0,0.2838747]
[1741444043592,0.02769405,86738.0,86736.0,0.2838747]
[1741444043805,0.02769405,86738.0,86737.0,0.0789]
[1741444044127,0.02769405,86738.0,86737.0,0.09043512]
[1741444044718,0.01616605,86738.0,86737.0,0.09043512]
[1741444044914,0.3,86740.0,86737.0,0.09043512]
[1741444045341,0.542102,86740.0,86737.0,0.09743512]
[1741444045639,0.011528,86738.0,86737.0,0.09743512]
[1741444045780,0.011528,86738.0,86737.0,0.0859]
[1741444046183,0.03183228,86738.0,86737.0,0.0859]
[1741444046721,0.02030428,86738.0,86737.0,0.0859]
[1741444046909,0.011528,86738.0,86737.0,0.0859]
[1741444047285,0.0001697,86742.0,86741.0,0.011528]